OrganisationNameLabel,OrganisationURI,EffectiveDate,Directorate/ServiceWhereExpenditureIncurred,ServiceCategoryLabel,ServiceCategoryURI,Supplier,SupplierRegisteredCompany Number,PaymentDate,TransactionNumber,NetAmount,IrrecoverableVAT,PurposeOfSpend,ProcurementClassification:ProclassLabel,ProcrementClassification:ProClassCode
South Lakeland District Council,http://opendatacommunities.org/id/district-council/south-lakeland,31/01/2021,Support Services,Central Services,http://opendatacommunities.org/def/concept/finance/sercop/objective/102,GRANTS- MISCELLANEOUS,,13/01/2021,126154,250,0,Locality donation to fund fund the,201700,Financial Services Grants
South Lakeland District Council,http://opendatacommunities.org/id/district-council/south-lakeland,31/01/2021,Business Support Community Services,Cultural Environmental Regulatory & Planning Services,http://opendatacommunities.org/def/concept/finance/sercop/objective/104,LANCASHIRE DAF,,20/01/2021,126440,250,0,Parts,381400,Vehicle Mgt Maintenance
South Lakeland District Council,http://opendatacommunities.org/id/district-council/south-lakeland,31/01/2021,Case Management Account Mgmt,Central Services,http://opendatacommunities.org/def/concept/finance/sercop/objective/102,ADECCO UK LIMITED,593232,25/01/2021,126475,253.12,0,Agency staff to support COVID-19,261400,HR Temporary & Agency Staff
South Lakeland District Council,http://opendatacommunities.org/id/district-council/south-lakeland,31/01/2021,Business Support Community Services,Cultural Environmental Regulatory & Planning Services,http://opendatacommunities.org/def/concept/finance/sercop/objective/104,S J Bargh,532272,25/01/2021,126393,253.6,0,MOTs 2020/21 & vehicle cleaning,381400,Vehicle Mgt Maintenance
,http://opendatacommunities.org/id/district-council/south-lakeland,31/01/2021,Business Support Community Services,Cultural Environmental Regulatory & Planning Services,http://opendatacommunities.org/def/concept/finance/sercop/objective/104,S J Bargh,532272,25/01/2021,128381,253.6,0,MOTs 2020/21 & vehicle cleaning,381400,Vehicle Mgt Maintenance
,http://opendatacommunities.org/id/district-council/south-lakeland,31/01/2021,Business Support Community Services,Cultural Environmental Regulatory & Planning Services,http://opendatacommunities.org/def/concept/finance/sercop/objective/104,ARCO LIMITED,133804,25/01/2021,128243,262.74,0,Cleaning materials,141100,Clothing Protective
South Lakeland District Council,http://opendatacommunities.org/id/district-council/south-lakeland,31/01/2021,Case Management Regulatory,Central Services,http://opendatacommunities.org/def/concept/finance/sercop/objective/102,The Oyster Partnership,5020374,20/01/2021,126209,264,0,Agency Environmental Health Officer,261300,HR Recruitment & Assessment
South Lakeland District Council,http://opendatacommunities.org/id/district-council/south-lakeland,31/01/2021,Support Services,Central Services,http://opendatacommunities.org/def/concept/finance/sercop/objective/102,THOMSON REUTERS (PROFESSIONAL) UK LTD,1679046,13/01/2021,126131,265,0,Schofield's Election Law LL PR R55,202100,Financial Services Subscriptions
South Lakeland District Council,http://opendatacommunities.org/id/district-council/south-lakeland,31/01/2021,Westmorland Centre Parking Office,Culture and Related Serv,http://opendatacommunities.org/def/concept/finance/sercop/objective/104,Bowland Ecology Ltd,5348761,11/01/2021,126160,270,0,Habitat management plans of Enhancement,152050,Consultancy Property
South Lakeland District Council,http://opendatacommunities.org/id/district-council/south-lakeland,31/01/2021,Business Support Community Services,Cultural Environmental Regulatory & Planning Services,http://opendatacommunities.org/def/concept/finance/sercop/objective/104,S J Bargh,532272,04/01/2021,125975,271,0,MOTs 2020/21 & vehicle cleaning,381400,Vehicle Mgt Maintenance
,http://opendatacommunities.org/id/district-council/south-lakeland,31/01/2021,Business Support Community Services,Cultural Environmental Regulatory & Planning Services,http://opendatacommunities.org/def/concept/finance/sercop/objective/104,S J Bargh,532272,25/01/2021,128343,275.6,0,MOTs 2020/21 & vehicle cleaning,381400,Vehicle Mgt Maintenance
South Lakeland District Council,http://opendatacommunities.org/id/district-council/south-lakeland,31/01/2021,Support Services,External Trading Accounts,,Ulverston Properties Limited,,11/01/2021,125936,281.67,0,Ulverston Business Centre,190000,Facilities & Management Services
South Lakeland District Council,http://opendatacommunities.org/id/district-council/south-lakeland,31/01/2021,Support Services,Non-Service Payments,,COMPUTERSHARE VOUCHER SERVICES LTD,4968447,13/01/2021,126377,283,0,Child Care Vouchers 20/21,202100,Financial Services Subscriptions
South Lakeland District Council,http://opendatacommunities.org/id/district-council/south-lakeland,31/01/2021,Social Enterprise Admin,Cultural Environmental Regulatory & Planning Services,http://opendatacommunities.org/def/concept/finance/sercop/objective/104,NEWSQUEST MEDIA GROUP LTD,3102566,11/01/2021,126051,286,0,PUBLIC NOTICES FOR PLANNING 1 APRIL - 31,191000,Facilities Advertising
,http://opendatacommunities.org/id/district-council/south-lakeland,31/01/2021,Business Support Community Services,Cultural Environmental Regulatory & Planning Services,http://opendatacommunities.org/def/concept/finance/sercop/objective/104,Southfield RCV Services,,20/01/2021,128238,292.5,0,Repairs,380000,Vehicle Management
South Lakeland District Council,http://opendatacommunities.org/id/district-council/south-lakeland,31/01/2021,Lake Wardens,Cultural Environmental Regulatory & Planning Services,http://opendatacommunities.org/def/concept/finance/sercop/objective/104,MARINE WAREHOUSE LIMITED,5152483,25/01/2021,126398,293.58,0,Annual Service of 1 x Ergofit Lifejacket,221000,Health & Safety� Products
South Lakeland District Council,http://opendatacommunities.org/id/district-council/south-lakeland,31/01/2021,Support Services,Other Items,,PS BUSINESS MATTERS,8147185,13/01/2021,126333,300,0,Project Assistance for Reopening High,151900,Consultancy Management
,http://opendatacommunities.org/id/district-council/south-lakeland,31/01/2021,Support Services,Central Services,http://opendatacommunities.org/def/concept/finance/sercop/objective/102,GRANTS- MISCELLANEOUS,,25/01/2021,128321,300,0,Locality budget to fund cost of renting,201700,Financial Services Grants
South Lakeland District Council,http://opendatacommunities.org/id/district-council/south-lakeland,31/01/2021,Lake Wardens,Cultural Environmental Regulatory & Planning Services,http://opendatacommunities.org/def/concept/finance/sercop/objective/104,CUMBRIA WASTE RECYCLING LTD,3162439,20/01/2021,126465,301.7,0,Emptying of Refuse Wheelie Bins (Normal,182012,Environment Waste Management Recycling
South Lakeland District Council,http://opendatacommunities.org/id/district-council/south-lakeland,31/01/2021,Support Services,Central Services,http://opendatacommunities.org/def/concept/finance/sercop/objective/102,CFH Docmail Ltd,1716891,13/01/2021,126176,304.17,0,Elec reg printing 20/21,300000,Mail Services
South Lakeland District Council,http://opendatacommunities.org/id/district-council/south-lakeland,31/01/2021,Case Management People,Central Services,http://opendatacommunities.org/def/concept/finance/sercop/objective/102,CHARTERED INSTITUTE OF HOUSING,,13/01/2021,126195,313,0,Chartered Institue of Housing,202100,Financial Services Subscriptions
South Lakeland District Council,http://opendatacommunities.org/id/district-council/south-lakeland,31/01/2021,Support Services,Central Services,http://opendatacommunities.org/def/concept/finance/sercop/objective/102,CUMBRIA WASTE RECYCLING LTD,3162439,20/01/2021,126466,314.67,0,SLH Wheelie Bin & Skip Emptying,182012,Environment Waste Management Recycling
South Lakeland District Council,http://opendatacommunities.org/id/district-council/south-lakeland,31/01/2021,Lake Wardens,Cultural Environmental Regulatory & Planning Services,http://opendatacommunities.org/def/concept/finance/sercop/objective/104,CONISTON CORPORATE EMBROIDERY UK LTD,2421673,06/01/2021,126079,316.89,0,4 x Pairs of Action Trousers in Black -,149999,Clothing Not Elsewhere Classified
South Lakeland District Council,http://opendatacommunities.org/id/district-council/south-lakeland,31/01/2021,Case Management Regulatory,Cultural Environmental Regulatory & Planning Services,http://opendatacommunities.org/def/concept/finance/sercop/objective/104,MOGO UK,3091301,13/01/2021,125973,332.9,0,Hackney Carriage Vehicle Door Sign -,281400,Legal Services Specialist Support
South Lakeland District Council,http://opendatacommunities.org/id/district-council/south-lakeland,31/01/2021,Support Services,Central Services,http://opendatacommunities.org/def/concept/finance/sercop/objective/102,ADECCO UK LIMITED,593232,06/01/2021,125968,334.84,0,"Period End: 08/05/20, TS: T002628613,",261400,HR Temporary & Agency Staff
South Lakeland District Council,http://opendatacommunities.org/id/district-council/south-lakeland,31/01/2021,Westmorland Centre Parking Office,Highways & Transport Services,http://opendatacommunities.org/def/concept/finance/sercop/objective/107,ADECCO UK LIMITED,593232,20/01/2021,125839,338.58,0,Cleaner for Multi Storey entered as per,261400,HR Temporary & Agency Staff
South Lakeland District Council,http://opendatacommunities.org/id/district-council/south-lakeland,31/01/2021,Westmorland Centre Parking Office,Highways & Transport Services,http://opendatacommunities.org/def/concept/finance/sercop/objective/107,ADECCO UK LIMITED,593232,13/01/2021,126182,338.58,0,Agency cleaner cover for Multi Storey,261400,HR Temporary & Agency Staff
South Lakeland District Council,http://opendatacommunities.org/id/district-council/south-lakeland,31/01/2021,Human Resources,Central Services,http://opendatacommunities.org/def/concept/finance/sercop/objective/102,Specsavers Corporate Eyecare,,11/01/2021,126171,340,0,20x VDU Eyecare Vouchers,311400,Healthcare Fees
South Lakeland District Council,http://opendatacommunities.org/id/district-council/south-lakeland,31/01/2021,Case Management Regulatory,Central Services,http://opendatacommunities.org/def/concept/finance/sercop/objective/102,The Oyster Partnership,5020374,18/01/2021,126203,340,0,Agency Environmental Health Officer,261300,HR Recruitment & Assessment
South Lakeland District Council,http://opendatacommunities.org/id/district-council/south-lakeland,31/01/2021,Human Resources,Central Services,http://opendatacommunities.org/def/concept/finance/sercop/objective/102,PENNA PLC,1918150,13/01/2021,126358,344,0,Advertising for Environmental Health,261400,HR Temporary & Agency Staff
South Lakeland District Council,http://opendatacommunities.org/id/district-council/south-lakeland,31/01/2021,Westmorland Centre Parking Office,Highways & Transport Services,http://opendatacommunities.org/def/concept/finance/sercop/objective/107,Security Plus   Limited,,20/01/2021,126431,350,0,Cash in transit December 2020,209999,Financial Services Not Elsewhere Classif
South Lakeland District Council,http://opendatacommunities.org/id/district-council/south-lakeland,31/01/2021,Business Support Community Services,Cultural Environmental Regulatory & Planning Services,http://opendatacommunities.org/def/concept/finance/sercop/objective/104,S J Bargh,532272,18/01/2021,126418,358,0,MOTs 2020/21 & vehicle cleaning,381400,Vehicle Mgt Maintenance
,http://opendatacommunities.org/id/district-council/south-lakeland,31/01/2021,Business Support Community Services,Cultural Environmental Regulatory & Planning Services,http://opendatacommunities.org/def/concept/finance/sercop/objective/104,CUMBRIA WASTE RECYCLING LTD,3162439,25/01/2021,128260,358,0,Skip emptying at Ecclerigg & Ulverston,182012,Environment Waste Management Recycling
South Lakeland District Council,http://opendatacommunities.org/id/district-council/south-lakeland,31/01/2021,Human Resources,Central Services,http://opendatacommunities.org/def/concept/finance/sercop/objective/102,CUMBRIA COUNTY COUNCIL,,27/01/2021,114122,360,0,DBS (Enhanced),908000,Public Bodies Council support services
South Lakeland District Council,http://opendatacommunities.org/id/district-council/south-lakeland,31/01/2021,Case Management Account Mgmt,Cultural Environmental Regulatory & Planning Services,http://opendatacommunities.org/def/concept/finance/sercop/objective/104,SOUTH LAKES TREE SURGEONS & LANDSCAPES,5342745,06/01/2021,125592,360,0,September 2020 tree works package,241210,Horticultural Tree Trimming
South Lakeland District Council,http://opendatacommunities.org/id/district-council/south-lakeland,31/01/2021,Business Support Community Services,Cultural Environmental Regulatory & Planning Services,http://opendatacommunities.org/def/concept/finance/sercop/objective/104,ROBEX INDUSTRIAL PRODUCTS LTD,1562656,13/01/2021,126227,367.44,0,Tubes,102100,Building Paint & Finishing
South Lakeland District Council,http://opendatacommunities.org/id/district-council/south-lakeland,31/01/2021,Case Management Regulatory,Central Services,http://opendatacommunities.org/def/concept/finance/sercop/objective/102,The Oyster Partnership,5020374,20/01/2021,126216,367.5,0,Agency Officer,261300,HR Recruitment & Assessment
South Lakeland District Council,http://opendatacommunities.org/id/district-council/south-lakeland,31/01/2021,Business Support Community Services,Cultural Environmental Regulatory & Planning Services,http://opendatacommunities.org/def/concept/finance/sercop/objective/104,HAKO MACHINES LIMITED,1414225,11/01/2021,125955,375,0,Parts & repairs,131000,Cleaning & Janitorial Cleaning Materials
,http://opendatacommunities.org/id/district-council/south-lakeland,31/01/2021,Case Management People,Housing Services,http://opendatacommunities.org/def/concept/finance/sercop/objective/108,SOUTH LAKES HOUSING RENT A/C,,27/01/2021,144725,377.87,0,Rent in advance,191700,Facilities Property Management
South Lakeland District Council,http://opendatacommunities.org/id/district-council/south-lakeland,31/01/2021,Business Support Community Services,Cultural Environmental Regulatory & Planning Services,http://opendatacommunities.org/def/concept/finance/sercop/objective/104,CUMBRIA TRUCK CENTRE LTD,4298488,20/01/2021,126444,381.12,0,Parts,381300,Vehicle Mgt Industrial
South Lakeland District Council,http://opendatacommunities.org/id/district-council/south-lakeland,31/01/2021,Business Support Community Services,Central Services,http://opendatacommunities.org/def/concept/finance/sercop/objective/102,CUMBRIA COUNTY COUNCIL,,25/01/2021,125591,384,0,LAND CHARGE SEARCH ENQUIRIES COMMONS,908000,Public Bodies Council support services
South Lakeland District Council,http://opendatacommunities.org/id/district-council/south-lakeland,31/01/2021,Business Support Community Services,Cultural Environmental Regulatory & Planning Services,http://opendatacommunities.org/def/concept/finance/sercop/objective/104,FAUN ZOELLER (UK) LTD,751804,25/01/2021,126499,389,0,parts,381400,Vehicle Mgt Maintenance
South Lakeland District Council,http://opendatacommunities.org/id/district-council/south-lakeland,31/01/2021,Support Services,SLDC as Agent,,Just H Design,,13/01/2021,126378,394,0,"Windowmere Project - Logo, Flyer &",191100,Facilities Design & Photography
South Lakeland District Council,http://opendatacommunities.org/id/district-council/south-lakeland,31/01/2021,Business Support Community Services,Cultural Environmental Regulatory & Planning Services,http://opendatacommunities.org/def/concept/finance/sercop/objective/104,DENNIS EAGLE LTD,3794455,11/01/2021,126136,397.98,0,Parts,381300,Vehicle Mgt Industrial
South Lakeland District Council,http://opendatacommunities.org/id/district-council/south-lakeland,31/01/2021,Business Support Community Services,Cultural Environmental Regulatory & Planning Services,http://opendatacommunities.org/def/concept/finance/sercop/objective/104,ELIS UK LTD,228604,06/01/2021,126044,398.27,0,Workwear hire 01/04/20 - 31/03/21,161000,Domestic Goods Commercial
South Lakeland District Council,http://opendatacommunities.org/id/district-council/south-lakeland,31/01/2021,Case Management,Central Services,http://opendatacommunities.org/def/concept/finance/sercop/objective/102,Airey Consultancy Services Ltd,3518844,13/01/2021,125604,400,0,PO for Airey Consultancy Services,151000,Consultancy Business
South Lakeland District Council,http://opendatacommunities.org/id/district-council/south-lakeland,31/01/2021,Case Management,Other Items,,Airey Consultancy Services Ltd,3518844,13/01/2021,125604,400,0,PO for Airey Consultancy Services,151000,Consultancy Business
South Lakeland District Council,http://opendatacommunities.org/id/district-council/south-lakeland,31/01/2021,Case Management People,Housing Services,http://opendatacommunities.org/def/concept/finance/sercop/objective/108,D Clark Properties,,06/01/2021,126063,400,0,Accommodation 82 Ramsden Street,250000,Housing
South Lakeland District Council,http://opendatacommunities.org/id/district-council/south-lakeland,31/01/2021,Case Management People,Housing Services,http://opendatacommunities.org/def/concept/finance/sercop/objective/108,D Clark Properties,,13/01/2021,126404,400,0,"Accommodation The Lodge, Barrow",250000,Housing
South Lakeland District Council,http://opendatacommunities.org/id/district-council/south-lakeland,31/01/2021,Westmorland Centre Parking Office,Highways & Transport Services,http://opendatacommunities.org/def/concept/finance/sercop/objective/107,ADECCO UK LIMITED,593232,13/01/2021,126186,400.09,0,Agency cleaner cover for Multi Storey,261400,HR Temporary & Agency Staff
South Lakeland District Council,http://opendatacommunities.org/id/district-council/south-lakeland,31/01/2021,Support Services,Cultural Environmental Regulatory & Planning Services,http://opendatacommunities.org/def/concept/finance/sercop/objective/104,WiFi Spark Ltd,,13/01/2021,126380,402.18,0,Kendal Wifi Maintenance,271800,ICT Telecommunications Mobile
South Lakeland District Council,http://opendatacommunities.org/id/district-council/south-lakeland,31/01/2021,Case Management,Central Services,http://opendatacommunities.org/def/concept/finance/sercop/objective/102,The Oyster Partnership,5020374,20/01/2021,126204,408,0,Agency Staff - Land Charges - Kasia,261300,HR Recruitment & Assessment
South Lakeland District Council,http://opendatacommunities.org/id/district-council/south-lakeland,31/01/2021,Case Management,Central Services,http://opendatacommunities.org/def/concept/finance/sercop/objective/102,The Oyster Partnership,5020374,20/01/2021,126204,408,0,Agency Staff - Land Charges - Kasia,261300,HR Recruitment & Assessment
South Lakeland District Council,http://opendatacommunities.org/id/district-council/south-lakeland,31/01/2021,Case Management Account Mgmt,Cultural Environmental Regulatory & Planning Services,http://opendatacommunities.org/def/concept/finance/sercop/objective/104,SOUTH LAKES TREE SURGEONS & LANDSCAPES,5342745,06/01/2021,125644,420,0,October 2020 tree works - Ecclerigg,241210,Horticultural Tree Trimming
,http://opendatacommunities.org/id/district-council/south-lakeland,31/01/2021,Case Management People,Housing Services,http://opendatacommunities.org/def/concept/finance/sercop/objective/108,T&G Varley T/A Bardsea Leisure Park,,20/01/2021,128334,420,0,Caravan pitch,250000,Housing
,http://opendatacommunities.org/id/district-council/south-lakeland,31/01/2021,Business Support Community Services,Cultural Environmental Regulatory & Planning Services,http://opendatacommunities.org/def/concept/finance/sercop/objective/104,Slicker Recycling Ltd,8652156,25/01/2021,128382,424,0,Oil collection,182015,Environment Waste Mgt Waste Disposal
South Lakeland District Council,http://opendatacommunities.org/id/district-council/south-lakeland,31/01/2021,Business Support Community Services,Cultural Environmental Regulatory & Planning Services,http://opendatacommunities.org/def/concept/finance/sercop/objective/104,AINSWORTH'S GARAGE,,11/01/2021,125958,425,0,Repairs,381400,Vehicle Mgt Maintenance
South Lakeland District Council,http://opendatacommunities.org/id/district-council/south-lakeland,31/01/2021,Case Management People,Housing Services,http://opendatacommunities.org/def/concept/finance/sercop/objective/108,HOME GROUP RENT A/C,,25/01/2021,126401,434.39,0,Rent in advance,250000,Housing
South Lakeland District Council,http://opendatacommunities.org/id/district-council/south-lakeland,31/01/2021,Case Management Regulatory,Central Services,http://opendatacommunities.org/def/concept/finance/sercop/objective/102,The Oyster Partnership,5020374,20/01/2021,126206,446.25,0,Agency Officer,261300,HR Recruitment & Assessment
,http://opendatacommunities.org/id/district-council/south-lakeland,31/01/2021,Case Management Account Mgmt,Highways & Transport Services,http://opendatacommunities.org/def/concept/finance/sercop/objective/107,CAPITA BUSINESS SERVICES LTD (NCR),,01/01/2021,128248,455.02,0,2020-21 Internet Payment / bank charges,261500,HR Training & Conferences
,http://opendatacommunities.org/id/district-council/south-lakeland,31/01/2021,Case Management Regulatory,Cultural Environmental Regulatory & Planning Services,http://opendatacommunities.org/def/concept/finance/sercop/objective/104,A G & P Jackson,,25/01/2021,128352,462,0,PO for Viability assessment - Mountain,150000,Consultancy
South Lakeland District Council,http://opendatacommunities.org/id/district-council/south-lakeland,31/01/2021,Case Management Account Mgmt,Central Services,http://opendatacommunities.org/def/concept/finance/sercop/objective/102,ADECCO UK LIMITED,593232,25/01/2021,126479,473.57,0,Agency staff to support COVID-19,261400,HR Temporary & Agency Staff
South Lakeland District Council,http://opendatacommunities.org/id/district-council/south-lakeland,31/01/2021,Case Management Account Mgmt,Central Services,http://opendatacommunities.org/def/concept/finance/sercop/objective/102,Inform CPI Ltd,,11/01/2021,125312,475,0,RV Finder - CUMBRIA (KENDAL),271600,ICT Software Customised & Bespoke
South Lakeland District Council,http://opendatacommunities.org/id/district-council/south-lakeland,31/01/2021,Case Management People,Central Services,http://opendatacommunities.org/def/concept/finance/sercop/objective/102,ADECCO UK LIMITED,593232,04/01/2021,125969,475.2,0,Payment ,261400,HR Temporary & Agency Staff
South Lakeland District Council,http://opendatacommunities.org/id/district-council/south-lakeland,31/01/2021,Case Management People,Central Services,http://opendatacommunities.org/def/concept/finance/sercop/objective/102,ADECCO UK LIMITED,593232,13/01/2021,126185,475.2,0,Payment ,261400,HR Temporary & Agency Staff
South Lakeland District Council,http://opendatacommunities.org/id/district-council/south-lakeland,31/01/2021,Case Management Account Mgmt,Central Services,http://opendatacommunities.org/def/concept/finance/sercop/objective/102,ADECCO UK LIMITED,593232,25/01/2021,126481,489.9,0,Agency staff to support COVID-19,261400,HR Temporary & Agency Staff
,http://opendatacommunities.org/id/district-council/south-lakeland,31/01/2021,Case Management Regulatory,Central Services,http://opendatacommunities.org/def/concept/finance/sercop/objective/102,The Oyster Partnership,5020374,25/01/2021,128310,490,0,Agency Officer,261300,HR Recruitment & Assessment
South Lakeland District Council,http://opendatacommunities.org/id/district-council/south-lakeland,31/01/2021,Case Management Account Mgmt,Central Services,http://opendatacommunities.org/def/concept/finance/sercop/objective/102,IRRV SERVICES,,06/01/2021,122346,500,0,3 members of staff to attend irrv,151000,Consultancy Business
South Lakeland District Council,http://opendatacommunities.org/id/district-council/south-lakeland,31/01/2021,Support Services,Cultural Environmental Regulatory & Planning Services,http://opendatacommunities.org/def/concept/finance/sercop/objective/104,CUMBRIA MAILING SERVICES LTD,3136821,13/01/2021,125590,500,0,SLDC Business Survey Mailing 2020,301200,Mail Services� Postage
,http://opendatacommunities.org/id/district-council/south-lakeland,31/01/2021,Human Resources,Central Services,http://opendatacommunities.org/def/concept/finance/sercop/objective/102,PlanningJobs.com,5215929,20/01/2021,128298,500,0,Advertising via PlanningJobs.com,261300,HR Recruitment & Assessment
,http://opendatacommunities.org/id/district-council/south-lakeland,31/01/2021,Case Management Account Mgmt,Cultural Environmental Regulatory & Planning Services,http://opendatacommunities.org/def/concept/finance/sercop/objective/104,INST OF CEMETERY & CREMATORIUM MANGMT,,27/01/2021,129675,500,0,10day online surgery,202100,Financial Services Subscriptions
,http://opendatacommunities.org/id/district-council/south-lakeland,31/01/2021,Business Support Community Services,Cultural Environmental Regulatory & Planning Services,http://opendatacommunities.org/def/concept/finance/sercop/objective/104,GREENCHEM SOLUTIONS LTD,5175801,25/01/2021,128346,502.75,0,AdBlue,189999,Environmental Services Not Elsewhere Cla
South Lakeland District Council,http://opendatacommunities.org/id/district-council/south-lakeland,31/01/2021,Human Resources,Central Services,http://opendatacommunities.org/def/concept/finance/sercop/objective/102,HFX LIMITED,8137794,04/01/2021,111617,503.5,0,100 Swipe ID Card (Numbers From 05501),261200,HR Professional & Advisory Services
South Lakeland District Council,http://opendatacommunities.org/id/district-council/south-lakeland,31/01/2021,Case Management Account Mgmt,Central Services,http://opendatacommunities.org/def/concept/finance/sercop/objective/102,ADECCO UK LIMITED,593232,25/01/2021,126477,506.23,0,Agency staff to support COVID-19,261400,HR Temporary & Agency Staff
South Lakeland District Council,http://opendatacommunities.org/id/district-council/south-lakeland,31/01/2021,Case Management Regulatory,Central Services,http://opendatacommunities.org/def/concept/finance/sercop/objective/102,The Oyster Partnership,5020374,11/01/2021,125628,507.5,0,Agency Officer,261300,HR Recruitment & Assessment
South Lakeland District Council,http://opendatacommunities.org/id/district-council/south-lakeland,31/01/2021,Human Resources,Central Services,http://opendatacommunities.org/def/concept/finance/sercop/objective/102,PENNA PLC,1918150,13/01/2021,126358,516,0,Advertising for Environmental Health,261400,HR Temporary & Agency Staff
South Lakeland District Council,http://opendatacommunities.org/id/district-council/south-lakeland,31/01/2021,Case Management Account Mgmt,Central Services,http://opendatacommunities.org/def/concept/finance/sercop/objective/102,ADECCO UK LIMITED,593232,11/01/2021,125971,518.48,0,Agency staff to support COVID-19,261400,HR Temporary & Agency Staff
South Lakeland District Council,http://opendatacommunities.org/id/district-council/south-lakeland,31/01/2021,Business Support Community Services,Cultural Environmental Regulatory & Planning Services,http://opendatacommunities.org/def/concept/finance/sercop/objective/104,ARCO LIMITED,133804,04/01/2021,123855,525.9,0,Cleaning materials,141100,Clothing Protective
,http://opendatacommunities.org/id/district-council/south-lakeland,31/01/2021,Business Support Community Services,Cultural Environmental Regulatory & Planning Services,http://opendatacommunities.org/def/concept/finance/sercop/objective/104,ARCO LIMITED,133804,25/01/2021,128339,533.4,0,Cleaning materials,141100,Clothing Protective
South Lakeland District Council,http://opendatacommunities.org/id/district-council/south-lakeland,31/01/2021,Human Resources,Cultural Environmental Regulatory & Planning Services,http://opendatacommunities.org/def/concept/finance/sercop/objective/104,NEWSQUEST MEDIA GROUP LTD,3102566,11/01/2021,126050,555.08,0,Vehicle and Plant Technician position:,191000,Facilities Advertising
,http://opendatacommunities.org/id/district-council/south-lakeland,31/01/2021,Support Services,SLDC as Agent,,Helen Moriarty,,20/01/2021,128313,556,0,Windowmere Project,151000,Consultancy Business
South Lakeland District Council,http://opendatacommunities.org/id/district-council/south-lakeland,31/01/2021,Case Management,Housing Services,http://opendatacommunities.org/def/concept/finance/sercop/objective/108,GROWING CONCERNS LTD,,06/01/2021,125829,558,0,Growing Concerns Payment for invoices,391200,Construction Engineering
,http://opendatacommunities.org/id/district-council/south-lakeland,31/01/2021,Case Management Regulatory,Central Services,http://opendatacommunities.org/def/concept/finance/sercop/objective/102,The Oyster Partnership,5020374,25/01/2021,128375,560,0,Agency Officer,261300,HR Recruitment & Assessment
South Lakeland District Council,http://opendatacommunities.org/id/district-council/south-lakeland,31/01/2021,Case Management People,Housing Services,http://opendatacommunities.org/def/concept/finance/sercop/objective/108,Ashberry Recruitment,7202591,18/01/2021,126330,567.78,0,Agency Staff at Town View Fields,261300,HR Recruitment & Assessment
South Lakeland District Council,http://opendatacommunities.org/id/district-council/south-lakeland,31/01/2021,Case Management Regulatory,Central Services,http://opendatacommunities.org/def/concept/finance/sercop/objective/102,The Oyster Partnership,5020374,20/01/2021,126208,570,0,Agency Officer to cover assessment of,261300,HR Recruitment & Assessment
South Lakeland District Council,http://opendatacommunities.org/id/district-council/south-lakeland,31/01/2021,Business Support Community Services,Cultural Environmental Regulatory & Planning Services,http://opendatacommunities.org/def/concept/finance/sercop/objective/104,ARCO LIMITED,133804,13/01/2021,126363,579.53,0,Cleaning materials,141100,Clothing Protective
South Lakeland District Council,http://opendatacommunities.org/id/district-council/south-lakeland,31/01/2021,Case Management Account Mgmt,Cultural Environmental Regulatory & Planning Services,http://opendatacommunities.org/def/concept/finance/sercop/objective/104,SOUTH LAKES TREE SURGEONS & LANDSCAPES,5342745,11/01/2021,125712,580,0,September 2020 tree works package,241210,Horticultural Tree Trimming
,http://opendatacommunities.org/id/district-council/south-lakeland,31/01/2021,Business Support Community Services,Cultural Environmental Regulatory & Planning Services,http://opendatacommunities.org/def/concept/finance/sercop/objective/104,GREENCHEM SOLUTIONS LTD,5175801,25/01/2021,128347,581.75,0,AdBlue,189999,Environmental Services Not Elsewhere Cla
,http://opendatacommunities.org/id/district-council/south-lakeland,31/01/2021,Support Services,Central Services,http://opendatacommunities.org/def/concept/finance/sercop/objective/102,CIPFA,2376684,20/01/2021,128320,590,0,2 x places at CIPFA Accounts Closedown,202100,Financial Services Subscriptions
South Lakeland District Council,http://opendatacommunities.org/id/district-council/south-lakeland,31/01/2021,Business Support Community Services,Cultural Environmental Regulatory & Planning Services,http://opendatacommunities.org/def/concept/finance/sercop/objective/104,HAKO MACHINES LIMITED,1414225,13/01/2021,126353,593.39,0,Parts & repairs,131000,Cleaning & Janitorial Cleaning Materials
South Lakeland District Council,http://opendatacommunities.org/id/district-council/south-lakeland,31/01/2021,Case Management Regulatory,Central Services,http://opendatacommunities.org/def/concept/finance/sercop/objective/102,Enterprise Flex-E Rent,,11/01/2021,126174,601.59,0,Refrigerated Van Hire for Private Water,381210,Vehicle Mangement- Hire
South Lakeland District Council,http://opendatacommunities.org/id/district-council/south-lakeland,31/01/2021,Case Management Regulatory,Central Services,http://opendatacommunities.org/def/concept/finance/sercop/objective/102,The Oyster Partnership,5020374,11/01/2021,125624,608,0,Agency Officer to cover assessment of,261300,HR Recruitment & Assessment
South Lakeland District Council,http://opendatacommunities.org/id/district-council/south-lakeland,31/01/2021,Case Management Regulatory,Central Services,http://opendatacommunities.org/def/concept/finance/sercop/objective/102,The Oyster Partnership,5020374,20/01/2021,126214,608,0,Agency Officer to cover assessment of,261300,HR Recruitment & Assessment
,http://opendatacommunities.org/id/district-council/south-lakeland,31/01/2021,Case Management Regulatory,Central Services,http://opendatacommunities.org/def/concept/finance/sercop/objective/102,The Oyster Partnership,5020374,25/01/2021,128304,608,0,Agency Officer to cover assessment of,261300,HR Recruitment & Assessment
South Lakeland District Council,http://opendatacommunities.org/id/district-council/south-lakeland,31/01/2021,Case Management Account Mgmt,Central Services,http://opendatacommunities.org/def/concept/finance/sercop/objective/102,ADECCO UK LIMITED,593232,25/01/2021,126482,620.54,0,Agency staff to support COVID-19,261400,HR Temporary & Agency Staff
,http://opendatacommunities.org/id/district-council/south-lakeland,31/01/2021,Business Support Community Services,Cultural Environmental Regulatory & Planning Services,http://opendatacommunities.org/def/concept/finance/sercop/objective/104,Southfield RCV Services,,25/01/2021,128340,630,0,Repairs,380000,Vehicle Management
South Lakeland District Council,http://opendatacommunities.org/id/district-council/south-lakeland,31/01/2021,Case Management Account Mgmt,Central Services,http://opendatacommunities.org/def/concept/finance/sercop/objective/102,ADECCO UK LIMITED,593232,25/01/2021,126478,632.79,0,Agency staff to support COVID-19,261400,HR Temporary & Agency Staff
,http://opendatacommunities.org/id/district-council/south-lakeland,31/01/2021,Case Management Regulatory,Central Services,http://opendatacommunities.org/def/concept/finance/sercop/objective/102,The Oyster Partnership,5020374,25/01/2021,128372,636.5,0,Agency Officer to cover assessment of,261300,HR Recruitment & Assessment
South Lakeland District Council,http://opendatacommunities.org/id/district-council/south-lakeland,31/01/2021,Support Services,Central Services,http://opendatacommunities.org/def/concept/finance/sercop/objective/102,NEWSQUEST MEDIA GROUP LTD,3102566,25/01/2021,126498,638,0,IRP Membership Allowand 2020/2021,191000,Facilities Advertising
South Lakeland District Council,http://opendatacommunities.org/id/district-council/south-lakeland,31/01/2021,Case Management Account Mgmt,Central Services,http://opendatacommunities.org/def/concept/finance/sercop/objective/102,ADECCO UK LIMITED,593232,25/01/2021,126480,645.04,0,Agency staff to support COVID-19,261400,HR Temporary & Agency Staff
South Lakeland District Council,http://opendatacommunities.org/id/district-council/south-lakeland,31/01/2021,Case Management Account Mgmt,Culture and Related Serv,http://opendatacommunities.org/def/concept/finance/sercop/objective/104,CONTINENTAL LANDSCAPES LTD,2108452,20/01/2021,125931,650,0,To install fencing and the self-closing,391310,Construction Open Spaces Construction
South Lakeland District Council,http://opendatacommunities.org/id/district-council/south-lakeland,31/01/2021,Support Services,SLDC as Agent,,Flock,,13/01/2021,126379,650,0,Windowmere Project,151000,Consultancy Business
South Lakeland District Council,http://opendatacommunities.org/id/district-council/south-lakeland,31/01/2021,Business Support Community Services,Cultural Environmental Regulatory & Planning Services,http://opendatacommunities.org/def/concept/finance/sercop/objective/104,ARCO LIMITED,133804,20/01/2021,126435,659.5,0,Cleaning materials,141100,Clothing Protective
South Lakeland District Council,http://opendatacommunities.org/id/district-council/south-lakeland,31/01/2021,Support Services,Cultural Environmental Regulatory & Planning Services,http://opendatacommunities.org/def/concept/finance/sercop/objective/104,CUMBRIA MAILING SERVICES LTD,3136821,13/01/2021,125590,662.52,0,SLDC Business Survey Mailing 2020,301200,Mail Services� Postage
South Lakeland District Council,http://opendatacommunities.org/id/district-council/south-lakeland,31/01/2021,Case Management People,Central Services,http://opendatacommunities.org/def/concept/finance/sercop/objective/102,Eden Brown Limited,,11/01/2021,126157,668.81,0,Payment,261400,HR Temporary & Agency Staff
South Lakeland District Council,http://opendatacommunities.org/id/district-council/south-lakeland,31/01/2021,Case Management Account Mgmt,Cultural Environmental Regulatory & Planning Services,http://opendatacommunities.org/def/concept/finance/sercop/objective/104,GLASDON UK LTD,2160576,11/01/2021,125709,669.38,0,Pembridge Picnic Table in Black,109999,Building Not Elsewhere Classified
,http://opendatacommunities.org/id/district-council/south-lakeland,31/01/2021,Business Support Community Services,Cultural Environmental Regulatory & Planning Services,http://opendatacommunities.org/def/concept/finance/sercop/objective/104,Haztec International Ltd,4157886,25/01/2021,128274,670.72,0,Beacons,380000,Vehicle Management
South Lakeland District Council,http://opendatacommunities.org/id/district-council/south-lakeland,31/01/2021,Case Management People,Housing Services,http://opendatacommunities.org/def/concept/finance/sercop/objective/108,Ashberry Recruitment,7202591,27/01/2021,126447,672.51,0,Agency Support Staff at TVF,261300,HR Recruitment & Assessment
,http://opendatacommunities.org/id/district-council/south-lakeland,31/01/2021,Business Support Community Services,Cultural Environmental Regulatory & Planning Services,http://opendatacommunities.org/def/concept/finance/sercop/objective/104,Southfield RCV Services,,25/01/2021,128341,675,0,Repairs,380000,Vehicle Management
South Lakeland District Council,http://opendatacommunities.org/id/district-council/south-lakeland,31/01/2021,Westmorland Centre Parking Office,Highways & Transport Services,http://opendatacommunities.org/def/concept/finance/sercop/objective/107,ADECCO UK LIMITED,593232,13/01/2021,125970,676.94,0,Agency cleaner cover for Multi Storey,261400,HR Temporary & Agency Staff
South Lakeland District Council,http://opendatacommunities.org/id/district-council/south-lakeland,31/01/2021,Case Management Account Mgmt,Central Services,http://opendatacommunities.org/def/concept/finance/sercop/objective/102,ADECCO UK LIMITED,593232,25/01/2021,126484,677.7,0,Agency staff to support COVID-19,261400,HR Temporary & Agency Staff
South Lakeland District Council,http://opendatacommunities.org/id/district-council/south-lakeland,31/01/2021,Case Management Account Mgmt,Central Services,http://opendatacommunities.org/def/concept/finance/sercop/objective/102,STANDING STONE DRAWING OFFICE SUPPLIES,5128817,20/01/2021,125747,678.6,0,Large roll plotter paper,341100,Stationery Sundries
South Lakeland District Council,http://opendatacommunities.org/id/district-council/south-lakeland,31/01/2021,Case Management,Central Services,http://opendatacommunities.org/def/concept/finance/sercop/objective/102,The Oyster Partnership,5020374,13/01/2021,126215,680,0,Agency Staff - Land Charges - Kasia,261300,HR Recruitment & Assessment
South Lakeland District Council,http://opendatacommunities.org/id/district-council/south-lakeland,31/01/2021,Case Management,Central Services,http://opendatacommunities.org/def/concept/finance/sercop/objective/102,The Oyster Partnership,5020374,13/01/2021,126215,680,0,Agency Staff - Land Charges - Kasia,261300,HR Recruitment & Assessment
South Lakeland District Council,http://opendatacommunities.org/id/district-council/south-lakeland,31/01/2021,Westmorland Centre Parking Office,Highways & Transport Services,http://opendatacommunities.org/def/concept/finance/sercop/objective/107,Security Plus   Limited,,20/01/2021,126430,684.01,0,Cash in transit December 2020,209999,Financial Services Not Elsewhere Classif
,http://opendatacommunities.org/id/district-council/south-lakeland,31/01/2021,Case Management People,Housing Services,http://opendatacommunities.org/def/concept/finance/sercop/objective/108,The Cumberland Hotel,,20/01/2021,128300,700,0,Accommodation 14 nights,250000,Housing
South Lakeland District Council,http://opendatacommunities.org/id/district-council/south-lakeland,31/01/2021,Development Implementation,Central Services,http://opendatacommunities.org/def/concept/finance/sercop/objective/102,J S Cleaning Services,,06/01/2021,126081,704,0,Cleaner for SLDC - April 2019 Onwards,131010,Cleaning & Janitorial Cleaning Materials
South Lakeland District Council,http://opendatacommunities.org/id/district-council/south-lakeland,31/01/2021,Business Support Community Services,Cultural Environmental Regulatory & Planning Services,http://opendatacommunities.org/def/concept/finance/sercop/objective/104,HAKO MACHINES LIMITED,1414225,18/01/2021,126354,740.98,0,Parts & repairs,131000,Cleaning & Janitorial Cleaning Materials
South Lakeland District Council,http://opendatacommunities.org/id/district-council/south-lakeland,31/01/2021,Business Support Community Services,Central Services,http://opendatacommunities.org/def/concept/finance/sercop/objective/102,CUMBRIA COUNTY COUNCIL,,04/01/2021,113389,744,0,LAND CHARGE SEARCH ENQUIRIES COMMONS,908000,Public Bodies Council support services
South Lakeland District Council,http://opendatacommunities.org/id/district-council/south-lakeland,31/01/2021,Case Management Account Mgmt,Central Services,http://opendatacommunities.org/def/concept/finance/sercop/objective/102,ALPHATEC P.F.E,5419826,20/01/2021,125619,750,0,1  SUPERFAX PF 370 FOLDING MACHINE,271400,ICT Office & Reprographics Equipment
South Lakeland District Council,http://opendatacommunities.org/id/district-council/south-lakeland,31/01/2021,Support Services,Central Services,http://opendatacommunities.org/def/concept/finance/sercop/objective/102,St John's Chambers,,11/01/2021,126165,750,0,Local Government Review-advice,281200,Legal Services General Support
South Lakeland District Council,http://opendatacommunities.org/id/district-council/south-lakeland,31/01/2021,Case Management Account Mgmt,Cultural Environmental Regulatory & Planning Services,http://opendatacommunities.org/def/concept/finance/sercop/objective/104,Jacksons Timber Ltd,,13/01/2021,126180,770,0,Marine Plywood 2440 x 1220 x 18mm as,100000,Building Construction materials
South Lakeland District Council,http://opendatacommunities.org/id/district-council/south-lakeland,31/01/2021,Case Management,Central Services,http://opendatacommunities.org/def/concept/finance/sercop/objective/102,PDP COMPANIES,3893956,13/01/2021,126132,790,0,FOI Practical Training Level 1,261500,HR Training & Conferences
,http://opendatacommunities.org/id/district-council/south-lakeland,31/01/2021,Case Management Regulatory,Central Services,http://opendatacommunities.org/def/concept/finance/sercop/objective/102,The Oyster Partnership,5020374,25/01/2021,128305,792,0,Agency Environmental Health Officer,261300,HR Recruitment & Assessment
,http://opendatacommunities.org/id/district-council/south-lakeland,31/01/2021,Case Management Regulatory,Central Services,http://opendatacommunities.org/def/concept/finance/sercop/objective/102,The Oyster Partnership,5020374,25/01/2021,128373,792,0,Agency Environmental Health Officer,261300,HR Recruitment & Assessment
South Lakeland District Council,http://opendatacommunities.org/id/district-council/south-lakeland,31/01/2021,Case Management Regulatory,Central Services,http://opendatacommunities.org/def/concept/finance/sercop/objective/102,The Oyster Partnership,5020374,20/01/2021,126213,797.4,0,Agency Environmental Health Officer,261300,HR Recruitment & Assessment
South Lakeland District Council,http://opendatacommunities.org/id/district-council/south-lakeland,31/01/2021,Case Management People,Central Services,http://opendatacommunities.org/def/concept/finance/sercop/objective/102,Eden Brown Limited,,11/01/2021,125954,807.19,0,Payment,261400,HR Temporary & Agency Staff
South Lakeland District Council,http://opendatacommunities.org/id/district-council/south-lakeland,31/01/2021,Case Management People,Central Services,http://opendatacommunities.org/def/concept/finance/sercop/objective/102,ADECCO UK LIMITED,593232,04/01/2021,125952,811.8,0,Payment ,261400,HR Temporary & Agency Staff
South Lakeland District Council,http://opendatacommunities.org/id/district-council/south-lakeland,31/01/2021,Case Management People,Central Services,http://opendatacommunities.org/def/concept/finance/sercop/objective/102,ADECCO UK LIMITED,593232,25/01/2021,126483,811.8,0,Payment ,261400,HR Temporary & Agency Staff
South Lakeland District Council,http://opendatacommunities.org/id/district-council/south-lakeland,31/01/2021,Case Management,Central Services,http://opendatacommunities.org/def/concept/finance/sercop/objective/102,The Oyster Partnership,5020374,13/01/2021,126197,816,0,Agency Staff - Land Charges - Kasia,261300,HR Recruitment & Assessment
South Lakeland District Council,http://opendatacommunities.org/id/district-council/south-lakeland,31/01/2021,Case Management Regulatory,Central Services,http://opendatacommunities.org/def/concept/finance/sercop/objective/102,The Oyster Partnership,5020374,11/01/2021,125629,817.2,0,Agency Environmental Health Officer,261300,HR Recruitment & Assessment
South Lakeland District Council,http://opendatacommunities.org/id/district-council/south-lakeland,31/01/2021,Case Management Regulatory,Central Services,http://opendatacommunities.org/def/concept/finance/sercop/objective/102,Carrington West,,13/01/2021,126335,828,0,Planning Enforcement contract officer,159999,Consultancy Not Elsewhere Classified
South Lakeland District Council,http://opendatacommunities.org/id/district-council/south-lakeland,31/01/2021,Case Management,Housing Services,http://opendatacommunities.org/def/concept/finance/sercop/objective/108,FIONA & JOHN ARMER,,18/01/2021,126455,839.88,0,"Monthly rent for Flat 1 & 2, 13 New",250000,Housing
,http://opendatacommunities.org/id/district-council/south-lakeland,31/01/2021,Case Management,Housing Services,http://opendatacommunities.org/def/concept/finance/sercop/objective/108,Harrogate Hill Lodge Hotel,4761139,27/01/2021,144726,840,0,Temporary accommodation for Jessica,250000,Housing
South Lakeland District Council,http://opendatacommunities.org/id/district-council/south-lakeland,31/01/2021,Human Resources,Central Services,http://opendatacommunities.org/def/concept/finance/sercop/objective/102,Choose Occupational Health,7365943,06/01/2021,125964,864.75,0,Specialist Assessment - ,191800,Facilities Public Relations & Image
South Lakeland District Council,http://opendatacommunities.org/id/district-council/south-lakeland,31/01/2021,Case Management Account Mgmt,Culture and Related Serv,http://opendatacommunities.org/def/concept/finance/sercop/objective/104,CONTINENTAL LANDSCAPES LTD,2108452,20/01/2021,125931,910.88,0,To install fencing and the self-closing,391310,Construction Open Spaces Construction
South Lakeland District Council,http://opendatacommunities.org/id/district-council/south-lakeland,31/01/2021,Case Management Account Mgmt,External Trading Accounts,,CONTINENTAL LANDSCAPES LTD,2108452,06/01/2021,125927,942.64,0,New Road grounds maintenance 2020/21,391310,Construction Open Spaces Construction
South Lakeland District Council,http://opendatacommunities.org/id/district-council/south-lakeland,31/01/2021,Case Management Regulatory,Central Services,http://opendatacommunities.org/def/concept/finance/sercop/objective/102,The Oyster Partnership,5020374,18/01/2021,126201,946,0,Agency Environmental Health Officer,261300,HR Recruitment & Assessment
South Lakeland District Council,http://opendatacommunities.org/id/district-council/south-lakeland,31/01/2021,Case Management Regulatory,Central Services,http://opendatacommunities.org/def/concept/finance/sercop/objective/102,The Oyster Partnership,5020374,20/01/2021,126207,975.75,0,Agency Environmental Health Officer,261300,HR Recruitment & Assessment
South Lakeland District Council,http://opendatacommunities.org/id/district-council/south-lakeland,31/01/2021,Case Management Regulatory,Central Services,http://opendatacommunities.org/def/concept/finance/sercop/objective/102,The Oyster Partnership,5020374,11/01/2021,125625,1000,0,Agency Environmental Health Officer,261300,HR Recruitment & Assessment
,http://opendatacommunities.org/id/district-council/south-lakeland,31/01/2021,Support Services,Central Services,http://opendatacommunities.org/def/concept/finance/sercop/objective/102,GRANTS- MISCELLANEOUS,,25/01/2021,128249,1000,0,Locality donation to fund Gladstone,201700,Financial Services Grants
,http://opendatacommunities.org/id/district-council/south-lakeland,31/01/2021,Case Management Regulatory,Central Services,http://opendatacommunities.org/def/concept/finance/sercop/objective/102,The Oyster Partnership,5020374,25/01/2021,128303,1000,0,Agency Environmental Health Officer,261300,HR Recruitment & Assessment
South Lakeland District Council,http://opendatacommunities.org/id/district-council/south-lakeland,31/01/2021,Case Management Account Mgmt,Highways & Transport Services,http://opendatacommunities.org/def/concept/finance/sercop/objective/107,CAPITA BUSINESS SERVICES LTD (NCR),,01/01/2021,128235,1033.05,0,2020-21 Internet Payment / bank charges,261500,HR Training & Conferences
South Lakeland District Council,http://opendatacommunities.org/id/district-council/south-lakeland,31/01/2021,ICT Group,Housing,http://opendatacommunities.org/def/concept/finance/sercop/objective/108,The Networking People (Northwest) LTD,,06/01/2021,126068,1057.03,0,FWF-60E-E - FortiWiFi-60E: 10 x GE RJ45,270000,Information Communications Technology
South Lakeland District Council,http://opendatacommunities.org/id/district-council/south-lakeland,31/01/2021,Case Management People,Central Services,http://opendatacommunities.org/def/concept/finance/sercop/objective/102,MORGAN HUNT UK LIMITED,4349535,13/01/2021,126161,1128,0,Payment ,269999,HR Not Elsewhere Classified
South Lakeland District Council,http://opendatacommunities.org/id/district-council/south-lakeland,31/01/2021,Case Management Account Mgmt,Highways & Transport Services,http://opendatacommunities.org/def/concept/finance/sercop/objective/107,BEMROSE BOOTH PARAGON LTD,4891375,11/01/2021,125598,1128.75,0,250000 Aura self adhesive Pay and,191600,Facilities Printing
South Lakeland District Council,http://opendatacommunities.org/id/district-council/south-lakeland,31/01/2021,Case Management,Housing Services,http://opendatacommunities.org/def/concept/finance/sercop/objective/108,Landlord,,13/01/2021,126336,1190,0,"Flat 1A, Kendal",202000,Financial Services Rents
South Lakeland District Council,http://opendatacommunities.org/id/district-council/south-lakeland,31/01/2021,Development Management,Central Services,http://opendatacommunities.org/def/concept/finance/sercop/objective/102,The Oyster Partnership,5020374,20/01/2021,126205,1200,0,Supply of Contract workers for Planning,261300,HR Recruitment & Assessment
South Lakeland District Council,http://opendatacommunities.org/id/district-council/south-lakeland,31/01/2021,Case Management Account Mgmt,Central Services,http://opendatacommunities.org/def/concept/finance/sercop/objective/102,IRRV SERVICES,,18/01/2021,126428,1200,0,IRRV Forum Membership 2021,151000,Consultancy Business
,http://opendatacommunities.org/id/district-council/south-lakeland,31/01/2021,Support Services,Central Services,http://opendatacommunities.org/def/concept/finance/sercop/objective/102,7 Harrington Street Chambers,,25/01/2021,128237,1208.33,0,ONGOING -SOUTH LAKELAND DC V HOLKER,281300,Legal Services Legal Opinion
South Lakeland District Council,http://opendatacommunities.org/id/district-council/south-lakeland,31/01/2021,Technical Team,Central Services,http://opendatacommunities.org/def/concept/finance/sercop/objective/102,Macdonald & Company Freelance Ltd,3882135,06/01/2021,126078,1246,0,PLANNING CONTRACT STAFF,261400,HR Temporary & Agency Staff
,http://opendatacommunities.org/id/district-council/south-lakeland,31/01/2021,Case Management Account Mgmt,Highways & Transport Services,http://opendatacommunities.org/def/concept/finance/sercop/objective/107,CAPITA BUSINESS SERVICES LTD (NCR),,01/01/2021,128271,1274.81,0,2020-21 Internet Payment / bank charges,261500,HR Training & Conferences
South Lakeland District Council,http://opendatacommunities.org/id/district-council/south-lakeland,31/01/2021,Case Management Account Mgmt,Cultural Environmental Regulatory & Planning Services,http://opendatacommunities.org/def/concept/finance/sercop/objective/104,CONTINENTAL LANDSCAPES LTD,2108452,13/01/2021,125928,1322.25,0,Planting of 43 replacement trees 2020,391310,Construction Open Spaces Construction
South Lakeland District Council,http://opendatacommunities.org/id/district-council/south-lakeland,31/01/2021,Business Support Community Services,Central Services,http://opendatacommunities.org/def/concept/finance/sercop/objective/102,CUMBRIA COUNTY COUNCIL,,04/01/2021,123222,1337,0,LAND CHARGE SEARCH ENQUIRIES HIGHWAYS,908000,Public Bodies Council support services
South Lakeland District Council,http://opendatacommunities.org/id/district-council/south-lakeland,31/01/2021,Support Services,Cultural Environmental Regulatory & Planning Services,http://opendatacommunities.org/def/concept/finance/sercop/objective/104,CUMBRIA MAILING SERVICES LTD,3136821,13/01/2021,126130,1383.61,0,SLDC Business Survey Mailing 2020,301200,Mail Services� Postage
South Lakeland District Council,http://opendatacommunities.org/id/district-council/south-lakeland,31/01/2021,Case Management Account Mgmt,SLDC as Agent,,ROYAL MAIL GROUP PLC,,18/01/2021,126371,1413.77,0,2020-21 Postal Charges a/c 0198123013,301200,Mail Services� Postage
South Lakeland District Council,http://opendatacommunities.org/id/district-council/south-lakeland,31/01/2021,Case Management People,Housing Services,http://opendatacommunities.org/def/concept/finance/sercop/objective/108,Poole Townsend Lettings,,06/01/2021,126125,1420,0,Rent arrears & end of tenancy clean,250010,Housing Letting Agents
South Lakeland District Council,http://opendatacommunities.org/id/district-council/south-lakeland,31/01/2021,Case Management Account Mgmt,Cultural Environmental Regulatory & Planning Services,http://opendatacommunities.org/def/concept/finance/sercop/objective/104,CONTINENTAL LANDSCAPES LTD,2108452,25/01/2021,125930,1442.49,0,Extra works for grounds maintenance,391310,Construction Open Spaces Construction
South Lakeland District Council,http://opendatacommunities.org/id/district-council/south-lakeland,31/01/2021,Human Resources,Central Services,http://opendatacommunities.org/def/concept/finance/sercop/objective/102,Haymarket Media Group Ltd,267189,06/01/2021,126080,1460,0,Specailist Level 1 Conservation,171114,Education Literature
South Lakeland District Council,http://opendatacommunities.org/id/district-council/south-lakeland,31/01/2021,Business Support Community Services,Cultural Environmental Regulatory & Planning Services,http://opendatacommunities.org/def/concept/finance/sercop/objective/104,CUMBRIA TRUCK CENTRE LTD,4298488,11/01/2021,126145,1465.64,0,Repairs,381300,Vehicle Mgt Industrial
South Lakeland District Council,http://opendatacommunities.org/id/district-council/south-lakeland,31/01/2021,Business Support Community Services,Cultural Environmental Regulatory & Planning Services,http://opendatacommunities.org/def/concept/finance/sercop/objective/104,HAKO MACHINES LIMITED,1414225,06/01/2021,126088,1486.67,0,Parts & repairs,131000,Cleaning & Janitorial Cleaning Materials
South Lakeland District Council,http://opendatacommunities.org/id/district-council/south-lakeland,31/01/2021,Case Management Account Mgmt,Highways & Transport Services,http://opendatacommunities.org/def/concept/finance/sercop/objective/107,BEMROSE BOOTH PARAGON LTD,4891375,11/01/2021,125599,1490,0,250000 Aura self adhesive Pay and,191600,Facilities Printing
South Lakeland District Council,http://opendatacommunities.org/id/district-council/south-lakeland,31/01/2021,Case Management Regulatory,Central Services,http://opendatacommunities.org/def/concept/finance/sercop/objective/102,Carrington West,,13/01/2021,126329,1490.4,0,Planning Enforcement contract officer,159999,Consultancy Not Elsewhere Classified
South Lakeland District Council,http://opendatacommunities.org/id/district-council/south-lakeland,31/01/2021,Development Management,Central Services,http://opendatacommunities.org/def/concept/finance/sercop/objective/102,The Oyster Partnership,5020374,20/01/2021,126217,1495.3,0,Supply of Contract workers for Planning,261300,HR Recruitment & Assessment
South Lakeland District Council,http://opendatacommunities.org/id/district-council/south-lakeland,31/01/2021,Case Management People,Housing Services,http://opendatacommunities.org/def/concept/finance/sercop/objective/108,D Clark Properties,,06/01/2021,126062,1500,0,Accommodation 82 Ramsden Street,250000,Housing
South Lakeland District Council,http://opendatacommunities.org/id/district-council/south-lakeland,31/01/2021,Case Management Regulatory,Cultural Environmental Regulatory & Planning Services,http://opendatacommunities.org/def/concept/finance/sercop/objective/104,LAMBERT SMITH HAMPTON GROUP,2521225,20/01/2021,126187,1500,0,Viabiltiy appraisal for Oxenholme,191700,Facilities Property Management
,http://opendatacommunities.org/id/district-council/south-lakeland,31/01/2021,Case Management People,Housing Services,http://opendatacommunities.org/def/concept/finance/sercop/objective/108,D Clark Properties,,20/01/2021,128299,1500,0,Accommodation 82 Ramsden Street,250000,Housing
South Lakeland District Council,http://opendatacommunities.org/id/district-council/south-lakeland,31/01/2021,Development Management,Central Services,http://opendatacommunities.org/def/concept/finance/sercop/objective/102,The Oyster Partnership,5020374,11/01/2021,125517,1540,0,Supply of Contract workers for Planning,261300,HR Recruitment & Assessment
South Lakeland District Council,http://opendatacommunities.org/id/district-council/south-lakeland,31/01/2021,Development Management,Central Services,http://opendatacommunities.org/def/concept/finance/sercop/objective/102,The Oyster Partnership,5020374,18/01/2021,125627,1550,0,Supply of Contract workers for Planning,261300,HR Recruitment & Assessment
South Lakeland District Council,http://opendatacommunities.org/id/district-council/south-lakeland,31/01/2021,Case Management People,Central Services,http://opendatacommunities.org/def/concept/finance/sercop/objective/102,Eden Brown Limited,,11/01/2021,126156,1582.5,0,Payment ,261400,HR Temporary & Agency Staff
South Lakeland District Council,http://opendatacommunities.org/id/district-council/south-lakeland,31/01/2021,Case Management Account Mgmt,Highways & Transport Services,http://opendatacommunities.org/def/concept/finance/sercop/objective/107,CAPITA BUSINESS SERVICES LTD (NCR),,01/01/2021,112570,1609.08,0,2020-21 Internet Payment / bank charges,261500,HR Training & Conferences
South Lakeland District Council,http://opendatacommunities.org/id/district-council/south-lakeland,31/01/2021,Case Management Regulatory,Central Services,http://opendatacommunities.org/def/concept/finance/sercop/objective/102,The Oyster Partnership,5020374,11/01/2021,125623,1628,0,Agency Environmental Health Officer,261300,HR Recruitment & Assessment
South Lakeland District Council,http://opendatacommunities.org/id/district-council/south-lakeland,31/01/2021,Case Management Account Mgmt,Cultural Environmental Regulatory & Planning Services,http://opendatacommunities.org/def/concept/finance/sercop/objective/104,GRANGE OVER SANDS CIVIC SOCIETY,,18/01/2021,126381,1634.58,0,Maintain Promenade beds and orchard at,201700,Financial Services Grants
South Lakeland District Council,http://opendatacommunities.org/id/district-council/south-lakeland,31/01/2021,Case Management People,Housing Services,http://opendatacommunities.org/def/concept/finance/sercop/objective/108,James Andrews Recruitment Solutions,6834852,20/01/2021,126449,1652.28,0,Payment,261400,HR Temporary & Agency Staff
,http://opendatacommunities.org/id/district-council/south-lakeland,31/01/2021,Case Management People,Housing Services,http://opendatacommunities.org/def/concept/finance/sercop/objective/108,James Andrews Recruitment Solutions,6834852,25/01/2021,128353,1652.28,0,Payment for Bruce Johnson,261400,HR Temporary & Agency Staff
,http://opendatacommunities.org/id/district-council/south-lakeland,31/01/2021,Business Support Community Services,Cultural Environmental Regulatory & Planning Services,http://opendatacommunities.org/def/concept/finance/sercop/objective/104,CUMBRIA WASTE RECYCLING LTD,3162439,25/01/2021,128261,1672.78,0,Skip emptying at Ecclerigg & Ulverston,182012,Environment Waste Management Recycling
South Lakeland District Council,http://opendatacommunities.org/id/district-council/south-lakeland,31/01/2021,Business Support Community Services,Central Services,http://opendatacommunities.org/def/concept/finance/sercop/objective/102,INNOVATIVE SAFETY SYSTEMS LTD,6875015,11/01/2021,125959,1695,0,Reaclear units,192200,Facilities Security
South Lakeland District Council,http://opendatacommunities.org/id/district-council/south-lakeland,31/01/2021,Business Support Community Services,Central Services,http://opendatacommunities.org/def/concept/finance/sercop/objective/102,INNOVATIVE SAFETY SYSTEMS LTD,6875015,06/01/2021,126085,1695,0,Reaclear units,192200,Facilities Security
South Lakeland District Council,http://opendatacommunities.org/id/district-council/south-lakeland,31/01/2021,Business Support Community Services,Central Services,http://opendatacommunities.org/def/concept/finance/sercop/objective/102,INNOVATIVE SAFETY SYSTEMS LTD,6875015,11/01/2021,126143,1695,0,Reaclear units,192200,Facilities Security
South Lakeland District Council,http://opendatacommunities.org/id/district-council/south-lakeland,31/01/2021,Business Support Community Services,Central Services,http://opendatacommunities.org/def/concept/finance/sercop/objective/102,INNOVATIVE SAFETY SYSTEMS LTD,6875015,11/01/2021,126144,1695,0,Reaclear units,192200,Facilities Security
South Lakeland District Council,http://opendatacommunities.org/id/district-council/south-lakeland,31/01/2021,Business Support Community Services,Central Services,http://opendatacommunities.org/def/concept/finance/sercop/objective/102,INNOVATIVE SAFETY SYSTEMS LTD,6875015,25/01/2021,126229,1695,0,Reaclear units,192200,Facilities Security
South Lakeland District Council,http://opendatacommunities.org/id/district-council/south-lakeland,31/01/2021,Business Support Community Services,Central Services,http://opendatacommunities.org/def/concept/finance/sercop/objective/102,INNOVATIVE SAFETY SYSTEMS LTD,6875015,13/01/2021,126364,1695,0,Reaclear units,192200,Facilities Security
South Lakeland District Council,http://opendatacommunities.org/id/district-council/south-lakeland,31/01/2021,Business Support Community Services,Central Services,http://opendatacommunities.org/def/concept/finance/sercop/objective/102,INNOVATIVE SAFETY SYSTEMS LTD,6875015,13/01/2021,126365,1695,0,Reaclear units,192200,Facilities Security
South Lakeland District Council,http://opendatacommunities.org/id/district-council/south-lakeland,31/01/2021,Case Management Regulatory,Cultural Environmental Regulatory & Planning Services,http://opendatacommunities.org/def/concept/finance/sercop/objective/104,UNITED UTILITIES WATER PLC,2366678,11/01/2021,126048,1696.31,0,Private Water Analysis,371300,Utilities Water
South Lakeland District Council,http://opendatacommunities.org/id/district-council/south-lakeland,31/01/2021,Business Support Community Services,Cultural Environmental Regulatory & Planning Services,http://opendatacommunities.org/def/concept/finance/sercop/objective/104,Masterstaff Limited,2777593,06/01/2021,126084,1728,0,Agency staff 2020/21,261300,HR Recruitment & Assessment
South Lakeland District Council,http://opendatacommunities.org/id/district-council/south-lakeland,31/01/2021,Support Services,Transport,http://opendatacommunities.org/def/concept/finance/sercop/objective/107,LAMBERT SMITH HAMPTON GROUP,2521225,11/01/2021,126170,1732.5,0,Car Park Works @ Grasmere,191700,Facilities Property Management
South Lakeland District Council,http://opendatacommunities.org/id/district-council/south-lakeland,31/01/2021,Case Management People,Central Services,http://opendatacommunities.org/def/concept/finance/sercop/objective/102,MORGAN HUNT UK LIMITED,4349535,13/01/2021,126162,1739,0,Payment ,269999,HR Not Elsewhere Classified
South Lakeland District Council,http://opendatacommunities.org/id/district-council/south-lakeland,31/01/2021,Case Management Account Mgmt,Cultural Environmental Regulatory & Planning Services,http://opendatacommunities.org/def/concept/finance/sercop/objective/104,CONTINENTAL LANDSCAPES LTD,2108452,06/01/2021,125929,1741.4,0,Parks Routine Maintenance from April,391310,Construction Open Spaces Construction
South Lakeland District Council,http://opendatacommunities.org/id/district-council/south-lakeland,31/01/2021,Business Support Community Services,Cultural Environmental Regulatory & Planning Services,http://opendatacommunities.org/def/concept/finance/sercop/objective/104,INNOVATIVE SAFETY SYSTEMS LTD,6875015,06/01/2021,126067,1765,0,Cameras,192200,Facilities Security
South Lakeland District Council,http://opendatacommunities.org/id/district-council/south-lakeland,31/01/2021,Case Management Regulatory,Cultural Environmental Regulatory & Planning Services,http://opendatacommunities.org/def/concept/finance/sercop/objective/104,UNITED UTILITIES WATER PLC,2366678,11/01/2021,126049,1860.93,0,Private Water Analysis,371300,Utilities Water
South Lakeland District Council,http://opendatacommunities.org/id/district-council/south-lakeland,31/01/2021,Case Management Regulatory,Central Services,http://opendatacommunities.org/def/concept/finance/sercop/objective/102,Carrington West,,13/01/2021,126192,1863,0,Planning Enforcement contract officer,159999,Consultancy Not Elsewhere Classified
,http://opendatacommunities.org/id/district-council/south-lakeland,31/01/2021,Case Management Regulatory,Central Services,http://opendatacommunities.org/def/concept/finance/sercop/objective/102,Carrington West,,25/01/2021,128350,1863,0,Planning Enforcement contract officer,159999,Consultancy Not Elsewhere Classified
,http://opendatacommunities.org/id/district-council/south-lakeland,31/01/2021,Case Management Account Mgmt,Cultural Environmental Regulatory & Planning Services,http://opendatacommunities.org/def/concept/finance/sercop/objective/104,Weasdale Nurseries Ltd,,25/01/2021,128251,1880,0,To supply 50 trees to Kendal Football,241600,Horticultural Trees & Shrubs
South Lakeland District Council,http://opendatacommunities.org/id/district-council/south-lakeland,31/01/2021,Business Support Community Services,Cultural Environmental Regulatory & Planning Services,http://opendatacommunities.org/def/concept/finance/sercop/objective/104,NEWSQUEST MEDIA GROUP LTD,3102566,11/01/2021,126058,1880.35,0,Half page in The Westmorland Gazette,191000,Facilities Advertising
South Lakeland District Council,http://opendatacommunities.org/id/district-council/south-lakeland,31/01/2021,Development Management,Central Services,http://opendatacommunities.org/def/concept/finance/sercop/objective/102,The Oyster Partnership,5020374,13/01/2021,126200,1890,0,Supply of Contract workers for Planning,261300,HR Recruitment & Assessment
South Lakeland District Council,http://opendatacommunities.org/id/district-council/south-lakeland,31/01/2021,Technical Team,Central Services,http://opendatacommunities.org/def/concept/finance/sercop/objective/102,Macdonald & Company Freelance Ltd,3882135,20/01/2021,126445,1927.33,0,PLANNING CONTRACT STAFF,261400,HR Temporary & Agency Staff
South Lakeland District Council,http://opendatacommunities.org/id/district-council/south-lakeland,31/01/2021,Westmorland Centre Parking Office,Highways & Transport Services,http://opendatacommunities.org/def/concept/finance/sercop/objective/107,CAPITA BUSINESS SERVICES LTD (NCR),,01/01/2021,126360,1994.72,0,Credit card commision April 2020 -,261500,HR Training & Conferences
South Lakeland District Council,http://opendatacommunities.org/id/district-council/south-lakeland,31/01/2021,Support Services,SLDC as Agent,,PS BUSINESS MATTERS,8147185,18/01/2021,126332,2000,0,Kendal Futures Programme Support,151900,Consultancy Management
South Lakeland District Council,http://opendatacommunities.org/id/district-council/south-lakeland,31/01/2021,Case Management Account Mgmt,Cultural Environmental Regulatory & Planning Services,http://opendatacommunities.org/def/concept/finance/sercop/objective/104,CONTINENTAL LANDSCAPES LTD,2108452,06/01/2021,125929,2009.8,0,Parks Routine Maintenance from April,391310,Construction Open Spaces Construction
,http://opendatacommunities.org/id/district-council/south-lakeland,31/01/2021,Business Support Community Services,Cultural Environmental Regulatory & Planning Services,http://opendatacommunities.org/def/concept/finance/sercop/objective/104,Harry Park Tyres Ltd,8131208,25/01/2021,128253,2070,0,Tyres,381500,Vehicle Mgt Parts
South Lakeland District Council,http://opendatacommunities.org/id/district-council/south-lakeland,31/01/2021,Case Management People,Central Services,http://opendatacommunities.org/def/concept/finance/sercop/objective/102,MORGAN HUNT UK LIMITED,4349535,20/01/2021,126426,2138.5,0,Payment ,269999,HR Not Elsewhere Classified
South Lakeland District Council,http://opendatacommunities.org/id/district-council/south-lakeland,31/01/2021,Case Management Account Mgmt,Culture and Related Serv,http://opendatacommunities.org/def/concept/finance/sercop/objective/104,HAGS-SMP Ltd,908021,13/01/2021,126402,2170.34,0,To supply and lay tarmac path at,331000,Sports Playground Equipment
South Lakeland District Council,http://opendatacommunities.org/id/district-council/south-lakeland,31/01/2021,Business Support Community Services,Cultural Environmental Regulatory & Planning Services,http://opendatacommunities.org/def/concept/finance/sercop/objective/104,Masterstaff Limited,2777593,25/01/2021,126553,2174.4,0,Agency staff,261300,HR Recruitment & Assessment
South Lakeland District Council,http://opendatacommunities.org/id/district-council/south-lakeland,31/01/2021,Case Management Account Mgmt,Cultural Environmental Regulatory & Planning Services,http://opendatacommunities.org/def/concept/finance/sercop/objective/104,CONTINENTAL LANDSCAPES LTD,2108452,06/01/2021,125934,2227.36,0,For disposal of waste to Kendal Fell,391310,Construction Open Spaces Construction
South Lakeland District Council,http://opendatacommunities.org/id/district-council/south-lakeland,31/01/2021,Development Management,Central Services,http://opendatacommunities.org/def/concept/finance/sercop/objective/102,The Oyster Partnership,5020374,13/01/2021,126202,2380,0,Supply of Contract workers for Planning,261300,HR Recruitment & Assessment
South Lakeland District Council,http://opendatacommunities.org/id/district-council/south-lakeland,31/01/2021,ICT Group,Central Services,http://opendatacommunities.org/def/concept/finance/sercop/objective/102,CABLE & WIRELESS UK (VODAFONE),,25/01/2021,126218,2445.15,0,Gsi Convergence Framework 1/4/20 to,271700,ICT Telecommunications Fixed
South Lakeland District Council,http://opendatacommunities.org/id/district-council/south-lakeland,31/01/2021,Business Support Community Services,Cultural Environmental Regulatory & Planning Services,http://opendatacommunities.org/def/concept/finance/sercop/objective/104,Harry Park Tyres Ltd,8131208,11/01/2021,126060,2537.5,0,Tyres,381500,Vehicle Mgt Parts
South Lakeland District Council,http://opendatacommunities.org/id/district-council/south-lakeland,31/01/2021,Business Support Community Services,Cultural Environmental Regulatory & Planning Services,http://opendatacommunities.org/def/concept/finance/sercop/objective/104,PENNINGTONS (KENDAL) LIMITED,434649,11/01/2021,126059,2750,0,Annual Charge for use of Link Road at,182013,Environment Waste Mgt Waste Collection
South Lakeland District Council,http://opendatacommunities.org/id/district-council/south-lakeland,31/01/2021,Case Management People,Housing Services,http://opendatacommunities.org/def/concept/finance/sercop/objective/108,HOME GROUP LTD,IP22981R,06/01/2021,126045,2765.14,0,Monthly lease of HMO - Lound Rd,250000,Housing
South Lakeland District Council,http://opendatacommunities.org/id/district-council/south-lakeland,31/01/2021,Customer Services,Cultural Environmental Regulatory & Planning Services,http://opendatacommunities.org/def/concept/finance/sercop/objective/104,MILNTHORPE KENNELS & CATTERY,8932302,06/01/2021,126043,2791.67,0,Stray dog contract 2020/21 collection,181500,Environment Animal Services
,http://opendatacommunities.org/id/district-council/south-lakeland,31/01/2021,Business Support Community Services,Cultural Environmental Regulatory & Planning Services,http://opendatacommunities.org/def/concept/finance/sercop/objective/104,Southfield RCV Services,,25/01/2021,128342,2868.74,0,Repairs,380000,Vehicle Management
South Lakeland District Council,http://opendatacommunities.org/id/district-council/south-lakeland,31/01/2021,Customer Services,Cultural Environmental Regulatory & Planning Services,http://opendatacommunities.org/def/concept/finance/sercop/objective/104,RIGHT 2 WORK,,20/01/2021,126188,2983,0,Bulky waste collection scheme 2020/21,321010,Social Care Adult Advice & Counselling
South Lakeland District Council,http://opendatacommunities.org/id/district-council/south-lakeland,31/01/2021,Case Management People,Housing Services,http://opendatacommunities.org/def/concept/finance/sercop/objective/108,LAMBERT SMITH HAMPTON GROUP,2521225,11/01/2021,125914,2987.5,0,Valuation Audits & Affordable Grants,191700,Facilities Property Management
South Lakeland District Council,http://opendatacommunities.org/id/district-council/south-lakeland,31/01/2021,Case Management People,Housing Services,http://opendatacommunities.org/def/concept/finance/sercop/objective/108,LAMBERT SMITH HAMPTON GROUP,2521225,27/01/2021,126193,2987.5,0,Valuation Audits & Affordable Grants,191700,Facilities Property Management
South Lakeland District Council,http://opendatacommunities.org/id/district-council/south-lakeland,31/01/2021,Case Management People,Housing Services,http://opendatacommunities.org/def/concept/finance/sercop/objective/108,MANNA HOUSE,8041948,11/01/2021,126178,3000,0,Housing advice and advocacy,250000,Housing
South Lakeland District Council,http://opendatacommunities.org/id/district-council/south-lakeland,31/01/2021,Case Management Regulatory,Central Services,http://opendatacommunities.org/def/concept/finance/sercop/objective/102,The Oyster Partnership,5020374,20/01/2021,126212,3027.3,0,Agency Environmental Health Officer,261300,HR Recruitment & Assessment
South Lakeland District Council,http://opendatacommunities.org/id/district-council/south-lakeland,31/01/2021,Development Implementation,Transport,http://opendatacommunities.org/def/concept/finance/sercop/objective/107,LAMBERT SMITH HAMPTON GROUP,2521225,20/01/2021,126471,3094,0,"Car Parks Resurfacinng Works (Grasmere,",191700,Facilities Property Management
South Lakeland District Council,http://opendatacommunities.org/id/district-council/south-lakeland,31/01/2021,Case Management Account Mgmt,Central Services,http://opendatacommunities.org/def/concept/finance/sercop/objective/102,CAPITA BUSINESS SERVICES LTD (NCR),,01/01/2021,112570,3179.68,0,2020-21 Internet Payment / bank charges,261500,HR Training & Conferences
South Lakeland District Council,http://opendatacommunities.org/id/district-council/south-lakeland,31/01/2021,Development Management,Central Services,http://opendatacommunities.org/def/concept/finance/sercop/objective/102,The Oyster Partnership,5020374,20/01/2021,126211,3237.5,0,Supply of Contract workers for Planning,261300,HR Recruitment & Assessment
,http://opendatacommunities.org/id/district-council/south-lakeland,31/01/2021,Case Management Account Mgmt,Central Services,http://opendatacommunities.org/def/concept/finance/sercop/objective/102,CAPITA BUSINESS SERVICES LTD (NCR),,01/01/2021,128248,3415.34,0,2020-21 Internet Payment / bank charges,261500,HR Training & Conferences
,http://opendatacommunities.org/id/district-council/south-lakeland,31/01/2021,Business Support Community Services,Cultural Environmental Regulatory & Planning Services,http://opendatacommunities.org/def/concept/finance/sercop/objective/104,STRAMONGATE PRESS LTD (PRINTING A/C),,25/01/2021,128241,3587,0,Printing of collection calendars per,191600,Facilities Printing
,http://opendatacommunities.org/id/district-council/south-lakeland,31/01/2021,Westmorland Centre Parking Office,Transport,http://opendatacommunities.org/def/concept/finance/sercop/objective/107,Atlantic Geomatics,4394899,20/01/2021,128319,3620,0,Survey of Westmorland Shopping centre,159999,Consultancy Not Elsewhere Classified
South Lakeland District Council,http://opendatacommunities.org/id/district-council/south-lakeland,31/01/2021,Case Management,Planning and Development,,GRANTS- MISCELLANEOUS,,13/01/2021,126361,3679.94,0,CIL - Neighbourhood Funding Portion,201700,Financial Services Grants
South Lakeland District Council,http://opendatacommunities.org/id/district-council/south-lakeland,31/01/2021,Case Management Account Mgmt,Central Services,http://opendatacommunities.org/def/concept/finance/sercop/objective/102,CAPITA BUSINESS SERVICES LTD (NCR),,01/01/2021,128235,3684.35,0,2020-21 Internet Payment / bank charges,261500,HR Training & Conferences
South Lakeland District Council,http://opendatacommunities.org/id/district-council/south-lakeland,31/01/2021,Support Services,SLDC as Agent,,BUSINESS AGAINST CRIME SOUTH LAKELAND,,13/01/2021,126181,3750,0,South Cumbria CSP 2020/21 Funding,201700,Financial Services Grants
South Lakeland District Council,http://opendatacommunities.org/id/district-council/south-lakeland,31/01/2021,Support Services,Highways & Transport Services,http://opendatacommunities.org/def/concept/finance/sercop/objective/107,Bloom Procurement Services Ltd,,06/01/2021,125568,3763.16,0,Arnside Parking Strategy,151900,Consultancy Management
,http://opendatacommunities.org/id/district-council/south-lakeland,31/01/2021,Business Support Community Services,Cultural Environmental Regulatory & Planning Services,http://opendatacommunities.org/def/concept/finance/sercop/objective/104,Initial,1298292,20/01/2021,128283,3790.55,0,Clinical waste collections - 2020/21,131011,Cleaning & Janitorial Cleaning Materials
South Lakeland District Council,http://opendatacommunities.org/id/district-council/south-lakeland,31/01/2021,Case Management Account Mgmt,Central Services,http://opendatacommunities.org/def/concept/finance/sercop/objective/102,ROYAL MAIL GROUP PLC,,13/01/2021,126349,4000,0,2021 annual fee to pay for before 10am,301200,Mail Services� Postage
South Lakeland District Council,http://opendatacommunities.org/id/district-council/south-lakeland,31/01/2021,Case Management Account Mgmt,Cultural Environmental Regulatory & Planning Services,http://opendatacommunities.org/def/concept/finance/sercop/objective/104,CONTINENTAL LANDSCAPES LTD,2108452,06/01/2021,125935,4050.03,0,For gravedigging from April 2020 -,391310,Construction Open Spaces Construction
South Lakeland District Council,http://opendatacommunities.org/id/district-council/south-lakeland,31/01/2021,Business Support Community Services,Cultural Environmental Regulatory & Planning Services,http://opendatacommunities.org/def/concept/finance/sercop/objective/104,ALLSTAR BUSINESS SOLUTIONS LTD (NCR),2631112,01/01/2021,126091,4100.66,0,Fuel to 31/12,381600,Vehicle Mgt Leasing
South Lakeland District Council,http://opendatacommunities.org/id/district-council/south-lakeland,31/01/2021,Business Support Community Services,Cultural Environmental Regulatory & Planning Services,http://opendatacommunities.org/def/concept/finance/sercop/objective/104,Masterstaff Limited,2777593,25/01/2021,126228,4356,0,Agency staff,261300,HR Recruitment & Assessment
South Lakeland District Council,http://opendatacommunities.org/id/district-council/south-lakeland,31/01/2021,Case Management Account Mgmt,Culture and Related Serv,http://opendatacommunities.org/def/concept/finance/sercop/objective/104,KOMPAN Scotland Ltd,SC127228,11/01/2021,124843,4484.2,0,"Fencing, play equipment and",331000,Sports Playground Equipment
South Lakeland District Council,http://opendatacommunities.org/id/district-council/south-lakeland,31/01/2021,Business Support Community Services,Cultural Environmental Regulatory & Planning Services,http://opendatacommunities.org/def/concept/finance/sercop/objective/104,ALLSTAR BUSINESS SOLUTIONS LTD (NCR),2631112,01/01/2021,126210,4613.81,0,Fuel to 15/12,381600,Vehicle Mgt Leasing
,http://opendatacommunities.org/id/district-council/south-lakeland,31/01/2021,Case Management Account Mgmt,Central Services,http://opendatacommunities.org/def/concept/finance/sercop/objective/102,CAPITA BUSINESS SERVICES LTD (NCR),,01/01/2021,128271,4662.93,0,2020-21 Internet Payment / bank charges,261500,HR Training & Conferences
South Lakeland District Council,http://opendatacommunities.org/id/district-council/south-lakeland,31/01/2021,ICT Group,Central Services,http://opendatacommunities.org/def/concept/finance/sercop/objective/102,IT PROFESSIONAL SERVICES (ITPS),,06/01/2021,125595,5000,0,Quote 006554 v1,279999,ICT Not Elsewhere Classified
South Lakeland District Council,http://opendatacommunities.org/id/district-council/south-lakeland,31/01/2021,Support Services,Transport,http://opendatacommunities.org/def/concept/finance/sercop/objective/107,Bloom Procurement Services Ltd,,13/01/2021,126072,5335.53,0,"WSC, Kendal - Concrete & Decking Repairs",151900,Consultancy Management
South Lakeland District Council,http://opendatacommunities.org/id/district-council/south-lakeland,31/01/2021,Business Support Community Services,Cultural Environmental Regulatory & Planning Services,http://opendatacommunities.org/def/concept/finance/sercop/objective/104,METCALFE BROS LTD,5899629,25/01/2021,126396,5624,0,Sweeper hire - 01/09/20 - 31/01/21,381200,Vehicle Mgt Heavy Constr Equip Leasing
South Lakeland District Council,http://opendatacommunities.org/id/district-council/south-lakeland,31/01/2021,Case Management Account Mgmt,Cultural Environmental Regulatory & Planning Services,http://opendatacommunities.org/def/concept/finance/sercop/objective/104,"Knight, Kavanagh and Page",,18/01/2021,126385,5775,0,Options appraisal for Leisure Services,150000,Consultancy
South Lakeland District Council,http://opendatacommunities.org/id/district-council/south-lakeland,31/01/2021,ICT Group,Central Services,http://opendatacommunities.org/def/concept/finance/sercop/objective/102,MERITEC LTD,3224622,06/01/2021,126066,6000,0,Merit Days - SLDC omly,391200,Construction Engineering
,http://opendatacommunities.org/id/district-council/south-lakeland,31/01/2021,Support Services,SLDC as Agent,,GRANTS- MISCELLANEOUS,,27/01/2021,144727,6000,0,CSP Grant 2020/21,201700,Financial Services Grants
,http://opendatacommunities.org/id/district-council/south-lakeland,31/01/2021,Case Management Account Mgmt,Non-Service Payments,,Kendal BID Ltd,8986243,27/01/2021,129702,6001.38,0,Kendal BID for monies collected,201700,Financial Services Grants
South Lakeland District Council,http://opendatacommunities.org/id/district-council/south-lakeland,31/01/2021,Case Management Account Mgmt,Transport,http://opendatacommunities.org/def/concept/finance/sercop/objective/107,WYG Management Services Ltd,4807864,20/01/2021,126368,6450,0,Parking review for Kendal,182012,Environment Waste Management Recycling
South Lakeland District Council,http://opendatacommunities.org/id/district-council/south-lakeland,31/01/2021,ICT Group,Central Services,http://opendatacommunities.org/def/concept/finance/sercop/objective/102,IT PROFESSIONAL SERVICES (ITPS),,06/01/2021,124842,6750,0,Break-Fix 24x7 - Core Infrastructure,279999,ICT Not Elsewhere Classified
South Lakeland District Council,http://opendatacommunities.org/id/district-council/south-lakeland,31/01/2021,Case Management People,SLDC as Agent,,SOUTH LAKES HOUSING,IP031419,25/01/2021,126338,6830.4,0,CBL Co-Ordinator costs,191700,Facilities Property Management
South Lakeland District Council,http://opendatacommunities.org/id/district-council/south-lakeland,31/01/2021,Case Management Account Mgmt,Cultural Environmental Regulatory & Planning Services,http://opendatacommunities.org/def/concept/finance/sercop/objective/104,LAMBERT SMITH HAMPTON GROUP,2521225,20/01/2021,126417,6875,0,Consultancy and report for Lakes,191700,Facilities Property Management
South Lakeland District Council,http://opendatacommunities.org/id/district-council/south-lakeland,31/01/2021,Case Management Account Mgmt,Central Services,http://opendatacommunities.org/def/concept/finance/sercop/objective/102,CAPITA BUSINESS SERVICES LTD,2299747,11/01/2021,114165,7000,0,Ingres 10.2 to 11 Migration for Windows,261500,HR Training & Conferences
South Lakeland District Council,http://opendatacommunities.org/id/district-council/south-lakeland,31/01/2021,ICT Group,Central Services,http://opendatacommunities.org/def/concept/finance/sercop/objective/102,MERITEC LTD,3224622,06/01/2021,125556,7480,0,This covers the final retention payment,391200,Construction Engineering
South Lakeland District Council,http://opendatacommunities.org/id/district-council/south-lakeland,31/01/2021,Case Management Account Mgmt,Cultural Environmental Regulatory & Planning Services,http://opendatacommunities.org/def/concept/finance/sercop/objective/104,CONTINENTAL LANDSCAPES LTD,2108452,06/01/2021,125929,10718.95,0,Parks Routine Maintenance from April,391310,Construction Open Spaces Construction
,http://opendatacommunities.org/id/district-council/south-lakeland,31/01/2021,Support Services,Cultural Environmental Regulatory & Planning Services,http://opendatacommunities.org/def/concept/finance/sercop/objective/104,ARNSIDE/SILVERDALE AONB-LANC CITY COUNC,,25/01/2021,128370,11500,0,ANOB Funding for 20/21 - Arnside &,201700,Financial Services Grants
South Lakeland District Council,http://opendatacommunities.org/id/district-council/south-lakeland,31/01/2021,Support Services,Transport Planning Policy,http://opendatacommunities.org/def/concept/finance/sercop/objective/107,Bloom Procurement Services Ltd,,20/01/2021,126451,11538.19,0,North Lonsdale Road Masterplan,151900,Consultancy Management
,http://opendatacommunities.org/id/district-council/south-lakeland,31/01/2021,Business Support Community Services,Cultural Environmental Regulatory & Planning Services,http://opendatacommunities.org/def/concept/finance/sercop/objective/104,CUMBRIA WASTE RECYCLING LTD,3162439,27/01/2021,129678,11973.54,0,Empty recycling banks in 2020/21,182012,Environment Waste Management Recycling
South Lakeland District Council,http://opendatacommunities.org/id/district-council/south-lakeland,31/01/2021,ICT Group,Central Services,http://opendatacommunities.org/def/concept/finance/sercop/objective/102,EDEN DISTRICT COUNCIL,,27/01/2021,125889,15299.9,0,Revs and Bens Digital Project,908000,Public Bodies Council support services
South Lakeland District Council,http://opendatacommunities.org/id/district-council/south-lakeland,31/01/2021,Business Support Community Services,Cultural Environmental Regulatory & Planning Services,http://opendatacommunities.org/def/concept/finance/sercop/objective/104,ALLSTAR BUSINESS SOLUTIONS LTD (NCR),2631112,01/01/2021,126210,15516.78,0,Fuel to 15/12,381600,Vehicle Mgt Leasing
South Lakeland District Council,http://opendatacommunities.org/id/district-council/south-lakeland,31/01/2021,Business Support Community Services,Cultural Environmental Regulatory & Planning Services,http://opendatacommunities.org/def/concept/finance/sercop/objective/104,ALLSTAR BUSINESS SOLUTIONS LTD (NCR),2631112,01/01/2021,126091,16398.62,0,Fuel to 31/12,381600,Vehicle Mgt Leasing
South Lakeland District Council,http://opendatacommunities.org/id/district-council/south-lakeland,31/01/2021,Business Support Community Services,Cultural Environmental Regulatory & Planning Services,http://opendatacommunities.org/def/concept/finance/sercop/objective/104,CUMBRIA COUNTY COUNCIL,,25/01/2021,126233,24401.62,0,"Tipping & disposal charges, recyclables",908000,Public Bodies Council support services
South Lakeland District Council,http://opendatacommunities.org/id/district-council/south-lakeland,31/01/2021,Case Management Account Mgmt,Non-Service Payments,,Ulverston BID Company Ltd,9761005,11/01/2021,126179,26292.85,0,Payments collected,201700,Financial Services Grants
South Lakeland District Council,http://opendatacommunities.org/id/district-council/south-lakeland,31/01/2021,Case Management People,SLDC as Agent,,CIVICA UK LTD,1628868,11/01/2021,113120,32000,0,Charges for new IT System,271600,ICT Software Customised & Bespoke
South Lakeland District Council,http://opendatacommunities.org/id/district-council/south-lakeland,31/01/2021,Business Support Community Services,Central Services,http://opendatacommunities.org/def/concept/finance/sercop/objective/102,Isuzu Truck (UK) Ltd,4953827,06/01/2021,125553,33491.22,0,Caged tipper lift vehicles per CONT0561.,381206,Vehicle Mgt Heavy Construction Equip Pur
,http://opendatacommunities.org/id/district-council/south-lakeland,31/01/2021,Business Support Community Services,Central Services,http://opendatacommunities.org/def/concept/finance/sercop/objective/102,Isuzu Truck (UK) Ltd,4953827,20/01/2021,128276,33491.22,0,Caged tipper lift vehicles per CONT0561.,381206,Vehicle Mgt Heavy Construction Equip Pur
,http://opendatacommunities.org/id/district-council/south-lakeland,31/01/2021,Business Support Community Services,Central Services,http://opendatacommunities.org/def/concept/finance/sercop/objective/102,Isuzu Truck (UK) Ltd,4953827,20/01/2021,128280,33491.22,0,Caged tipper lift vehicles per CONT0561.,381206,Vehicle Mgt Heavy Construction Equip Pur
,http://opendatacommunities.org/id/district-council/south-lakeland,31/01/2021,Business Support Community Services,Central Services,http://opendatacommunities.org/def/concept/finance/sercop/objective/102,Isuzu Truck (UK) Ltd,4953827,20/01/2021,128281,33491.22,0,Caged tipper lift vehicles per CONT0561.,381206,Vehicle Mgt Heavy Construction Equip Pur
,http://opendatacommunities.org/id/district-council/south-lakeland,31/01/2021,Business Support Community Services,Central Services,http://opendatacommunities.org/def/concept/finance/sercop/objective/102,Isuzu Truck (UK) Ltd,4953827,20/01/2021,128282,33491.22,0,Caged tipper lift vehicles per CONT0561.,381206,Vehicle Mgt Heavy Construction Equip Pur
,http://opendatacommunities.org/id/district-council/south-lakeland,31/01/2021,Business Support Community Services,Central Services,http://opendatacommunities.org/def/concept/finance/sercop/objective/102,Isuzu Truck (UK) Ltd,4953827,20/01/2021,128277,36390.49,0,Caged tipper lift vehicles per CONT0561.,381206,Vehicle Mgt Heavy Construction Equip Pur
,http://opendatacommunities.org/id/district-council/south-lakeland,31/01/2021,Business Support Community Services,Central Services,http://opendatacommunities.org/def/concept/finance/sercop/objective/102,Isuzu Truck (UK) Ltd,4953827,20/01/2021,128278,36390.49,0,Caged tipper lift vehicles per CONT0561.,381206,Vehicle Mgt Heavy Construction Equip Pur
,http://opendatacommunities.org/id/district-council/south-lakeland,31/01/2021,Business Support Community Services,Central Services,http://opendatacommunities.org/def/concept/finance/sercop/objective/102,Isuzu Truck (UK) Ltd,4953827,20/01/2021,128279,36390.49,0,Caged tipper lift vehicles per CONT0561.,381206,Vehicle Mgt Heavy Construction Equip Pur
South Lakeland District Council,http://opendatacommunities.org/id/district-council/south-lakeland,31/01/2021,Business Support Community Services,Cultural Environmental Regulatory & Planning Services,http://opendatacommunities.org/def/concept/finance/sercop/objective/104,CUMBRIA COUNTY COUNCIL,,11/01/2021,126234,47247.28,0,"Tipping & disposal charges, recyclables",908000,Public Bodies Council support services
South Lakeland District Council,http://opendatacommunities.org/id/district-council/south-lakeland,31/01/2021,Case Management Account Mgmt,Cultural Environmental Regulatory & Planning Services,http://opendatacommunities.org/def/concept/finance/sercop/objective/104,CONTINENTAL LANDSCAPES LTD,2108452,06/01/2021,125929,51048.99,0,Parks Routine Maintenance from April,391310,Construction Open Spaces Construction
,http://opendatacommunities.org/id/district-council/south-lakeland,31/01/2021,Case Management Regulatory,Cultural Environmental Regulatory & Planning Services,http://opendatacommunities.org/def/concept/finance/sercop/objective/104,Greenwich Leisure Ltd,,20/01/2021,128301,55407.5,0,Leisure Management Fees - Quarterly,291400,Arts & Leisure Services Sport & Fitness
South Lakeland District Council,http://opendatacommunities.org/id/district-council/south-lakeland,31/01/2021,Business Support Community Services,Cultural Environmental Regulatory & Planning Services,http://opendatacommunities.org/def/concept/finance/sercop/objective/104,CUMBRIA COUNTY COUNCIL,,20/01/2021,126437,64942.06,0,"Tipping & disposal charges, recyclables",908000,Public Bodies Council support services
South Lakeland District Council,http://opendatacommunities.org/id/district-council/south-lakeland,31/01/2021,Support Services,Central Services,http://opendatacommunities.org/def/concept/finance/sercop/objective/102,CUMBRIA LGPS,,20/01/2021,126189,70219.8,0,20/21 CCC Contribution re. past pensions,908999,Public Bodies Not Elsewhere Classified
,http://opendatacommunities.org/id/district-council/south-lakeland,31/01/2021,Support Services,Central Services,http://opendatacommunities.org/def/concept/finance/sercop/objective/102,LAMBERT SMITH HAMPTON GROUP,2521225,27/01/2021,129691,80268.66,0,Property Service Contract (Apr - Sept),191700,Facilities Property Management
South Lakeland District Council,http://opendatacommunities.org/id/district-council/south-lakeland,31/01/2021,Case Management Account Mgmt,Central Services,http://opendatacommunities.org/def/concept/finance/sercop/objective/102,Caddick Construction (NW) Limited,,25/01/2021,126384,334613.79,0,Contract number NW127 - Refurbishment,391100,Construction Buildings
